{"text_format":"1","workbook":"xlsx","n_sheets":9,"sheets":["Copy Paste","Copy Paste-Destination","Manual","Destination2","Move or Copy","Move or Copy (2)","VBA","VBA-Destination","VBA-Source"],"not_rendered":{"charts":0,"images":0,"macros":1,"external_links":0,"defined_names":84,"comments":0,"pivot_tables":0},"unopened":[],"bounds":{"document_bytes":16777216,"sheet_cells":100000,"rows_first":2000,"rows_last":500,"rows_between":2000,"halvings":0,"cell_chars":16384,"cell_head_chars":4096},"cells_cut":0,"cells_raw":0,"read":"whole","date_system":"1900"}

{"sheet":"Copy Paste","index":0,"n_rows":11,"n_cols":4,"rows_kept":11,"cut":false,"hidden":false,"merged":[[1,1,1,3]]}
[]
[null,"Use of Copy And Paste Option to Transfer Data"]
[]
[null,"Salesperson","Region","Sales"]
[null,"Sam","Canada",442589]
[null,"Peter","USA",727734]
[null,"Jack","Brazil",778923]
[null,"Samuel","UK",999320]
[null,"Willium","London",584738]
[null,"Ron","Canada",598210]
[null,"Bob","UK",557832]

{"sheet":"Copy Paste-Destination","index":1,"n_rows":11,"n_cols":4,"rows_kept":11,"cut":false,"hidden":false,"merged":[[1,1,1,3]]}
[]
[null,"Use of Copy And Paste Option to Transfer Data"]
[]
[null,{"$f":"'Copy Paste'!B4","v":"Salesperson"},{"$f":"'Copy Paste'!C4","v":"Region"},{"$f":"'Copy Paste'!D4","v":"Sales"}]
[null,{"$f":"'Copy Paste'!B5","v":"Sam"},{"$f":"'Copy Paste'!C5","v":"Canada"},{"$f":"'Copy Paste'!D5","v":442589}]
[null,{"$f":"'Copy Paste'!B6","v":"Peter"},{"$f":"'Copy Paste'!C6","v":"USA"},{"$f":"'Copy Paste'!D6","v":727734}]
[null,{"$f":"'Copy Paste'!B7","v":"Jack"},{"$f":"'Copy Paste'!C7","v":"Brazil"},{"$f":"'Copy Paste'!D7","v":778923}]
[null,{"$f":"'Copy Paste'!B8","v":"Samuel"},{"$f":"'Copy Paste'!C8","v":"UK"},{"$f":"'Copy Paste'!D8","v":999320}]
[null,{"$f":"'Copy Paste'!B9","v":"Willium"},{"$f":"'Copy Paste'!C9","v":"London"},{"$f":"'Copy Paste'!D9","v":584738}]
[null,{"$f":"'Copy Paste'!B10","v":"Ron"},{"$f":"'Copy Paste'!C10","v":"Canada"},{"$f":"'Copy Paste'!D10","v":598210}]
[null,{"$f":"'Copy Paste'!B11","v":"Bob"},{"$f":"'Copy Paste'!C11","v":"UK"},{"$f":"'Copy Paste'!D11","v":557832}]

{"sheet":"Manual","index":2,"n_rows":13,"n_cols":4,"rows_kept":13,"cut":false,"hidden":false,"merged":[[1,1,1,3],[12,1,12,2]]}
[]
[null,"Use of Manual Option to Transfer Data"]
[]
[null,"Salesperson","Region","Sales"]
[null,"Sam","Canada",442589]
[null,"Peter","USA",727734]
[null,"Jack","Brazil",778923]
[null,"Samuel","UK",999320]
[null,"Willium","London",584738]
[null,"Ron","Canada",598210]
[null,"Bob","UK",557832]
[]
[null,"Total Sales:",null,{"$f":"SUM(D5:D11)","v":4689346}]

{"sheet":"Destination2","index":3,"n_rows":4,"n_cols":6,"rows_kept":4,"cut":false,"hidden":false,"merged":[[1,1,1,3],[3,1,3,2],[1,5,1,7],[3,5,3,6]]}
[]
[null,"Use of Manual Option to Transfer Data",null,null,null,"Try Yourself"]
[]
[null,"Total Sales:",null,{"$f":"Manual!D13","v":4689346},null,"Total Sales:"]

{"sheet":"Move or Copy","index":4,"n_rows":11,"n_cols":4,"rows_kept":11,"cut":false,"hidden":false,"merged":[[1,1,1,3]]}
[]
[null,"Use of Move Or Copy Command to Transfer Data"]
[]
[null,"Salesperson","Region","Sales"]
[null,"Sam","Canada",442589]
[null,"Peter","USA",727734]
[null,"Jack","Brazil",778923]
[null,"Samuel","UK",999320]
[null,"Willium","London",584738]
[null,"Ron","Canada",598210]
[null,"Bob","UK",557832]

{"sheet":"Move or Copy (2)","index":5,"n_rows":11,"n_cols":4,"rows_kept":11,"cut":false,"hidden":false,"merged":[[1,1,1,3]]}
[]
[null,"Use of Move Or Copy Command to Transfer Data"]
[]
[null,"Salesperson","Region","Sales"]
[null,"Sam","Canada",442589]
[null,"Peter","USA",727734]
[null,"Jack","Brazil",778923]
[null,"Samuel","UK",999320]
[null,"Willium","London",584738]
[null,"Ron","Canada",598210]
[null,"Bob","UK",557832]

{"sheet":"VBA","index":6,"n_rows":11,"n_cols":4,"rows_kept":11,"cut":false,"hidden":false,"merged":[[1,1,1,3]]}
[]
[null,"Use of VBA to Transfer Data in Another Sheet"]
[]
[null,"Salesperson","Region","Sales"]
[null,"Sam","Canada",442589]
[null,"Peter","USA",727734]
[null,"Jack","Brazil",778923]
[null,"Samuel","UK",999320]
[null,"Willium","London",584738]
[null,"Ron","Canada",598210]
[null,"Bob","UK",557832]

{"sheet":"VBA-Destination","index":7,"n_rows":11,"n_cols":4,"rows_kept":11,"cut":false,"hidden":false,"merged":[[1,1,1,3]]}
[]
[null,"Use of VBA to Transfer Data in Another Sheet"]
[]
[null,"Salesperson","Region","Sales"]
[null,"Sam","Canada",442589]
[null,"Peter","USA",727734]
[null,"Jack","Brazil",778923]
[null,"Samuel","UK",999320]
[null,"Willium","London",584738]
[null,"Ron","Canada",598210]
[null,"Bob","UK",557832]

{"sheet":"VBA-Source","index":8,"n_rows":11,"n_cols":4,"rows_kept":11,"cut":false,"hidden":false,"merged":[[1,1,1,3]]}
[]
[null,"Use of VBA to Transfer Data in Another Sheet"]
[]
[null,"Salesperson","Region","Sales"]
[null,"Sam","Canada",442589]
[null,"Peter","USA",727734]
[null,"Jack","Brazil",778923]
[null,"Samuel","UK",999320]
[null,"Willium","London",584738]
[null,"Ron","Canada",598210]
[null,"Bob","UK",557832]